[Event "NJSK 2023 Meisjes C"]
[Site "Almelo, Netherlands"]
[Date "2023.05.04"]
[Round "5.5"]
[White "Ganeshram, Niranjana"]
[Black "Luong, Thao"]
[Result "1-0"]
[TimeControl "90min/40moves + 30min + 30sec/move"]
[WhiteElo "775"]
[BlackElo "804"]

1. e4 {[%clk 01:30:58]} {[%emt 00:00:02]} e5 {[%clk 01:30:57]} {[%emt
00:00:04]} 2. Nf3 {[%clk 01:31:23]} {[%emt 00:00:04]} Nc6 {[%clk 01:31:24]}
{[%emt 00:00:04]} 3. Bc4 {[%clk 01:31:41]} {[%emt 00:00:11]} Nd4 {[%clk
01:30:38]} {[%emt 00:01:17]} 4. O-O {[%clk 01:29:47]} {[%emt 00:02:24]} d6
{[%clk 01:28:34]} {[%emt 00:02:34]} 5. h3 {[%clk 01:29:56]} {[%emt 00:00:21]}
Be7 {[%clk 01:27:15]} {[%emt 00:01:48]} 6. Nxd4 {[%clk 01:29:03]} {[%emt
00:01:23]} exd4 {[%clk 01:27:23]} {[%emt 00:00:22]} 7. d3 {[%clk 01:29:22]}
{[%emt 00:00:12]} Nf6 {[%clk 01:27:07]} {[%emt 00:00:46]} 8. Bg5 {[%clk
01:29:31]} {[%emt 00:00:19]} Be6 {[%clk 01:25:57]} {[%emt 00:01:41]} 9. Bxe6
{[%clk 01:28:44]} {[%emt 00:01:16]} fxe6 {[%clk 01:26:22]} {[%emt 00:00:06]} 10.
Nd2 {[%emt 00:02:05]} O-O {[%clk 01:25:46]} {[%emt 00:00:17]} 11. Qf3 {[%clk
01:26:51]} {[%emt 00:01:38]} Nxe4 {[%clk 01:22:40]} {[%emt 00:03:36]} 12. Qxe4
{[%clk 01:26:08]} {[%emt 00:01:12]} Bxg5 {[%clk 01:22:54]} {[%emt 00:00:17]} 13.
Qxe6+ {[%clk 01:24:49]} {[%emt 00:01:49]} Kh8 {[%clk 01:22:40]} {[%emt
00:00:44]} 14. Nf3 {[%clk 01:24:20]} {[%emt 00:01:00]} Bh6 {[%clk 01:22:02]}
{[%emt 00:01:07]} 15. Nxd4 {[%clk 01:21:23]} {[%emt 00:03:27]} Qh4 {[%clk
01:20:32]} {[%emt 00:02:01]} 16. Qe4 {[%clk 01:13:57]} {[%emt 00:07:56]} Qxe4
{[%clk 01:19:33]} {[%emt 00:01:28]} 17. dxe4 {[%clk 01:12:04]} {[%emt
00:02:23]} Rfe8 {[%clk 01:19:39]} {[%emt 00:00:22]} 18. Nb5 {[%clk 01:09:50]}
{[%emt 00:02:47]} Rxe4 {[%clk 01:18:57]} {[%emt 00:01:12]} 19. Nxc7 {[%clk
01:09:42]} {[%emt 00:00:37]} Rc8 {[%clk 01:19:06]} {[%emt 00:00:22]} 20. Nb5
{[%clk 01:09:35]} {[%emt 00:00:36]} Rxc2 {[%clk 01:18:56]} {[%emt 00:00:41]} 21.
Nxd6 {[%clk 01:09:49]} {[%emt 00:00:16]} Rb4 {[%clk 01:16:43]} {[%emt
00:02:43]} 22. Rae1 {[%clk 01:08:10]} {[%emt 00:02:08]} g6 {[%clk 01:15:58]}
{[%emt 00:01:15]} 23. Re8+ {[%clk 01:04:39]} {[%emt 00:04:01]} Kg7 {[%clk
01:16:15]} {[%emt 00:00:12]} 24. Re7+ {[%clk 01:04:41]} {[%emt 00:00:29]} Kf6
{[%clk 01:16:28]} {[%emt 00:00:18]} 25. Rxh7 {[%clk 01:04:50]} {[%emt
00:00:20]} Bf4 {[%clk 01:14:37]} {[%emt 00:02:21]} 26. Nxb7 {[%clk 01:03:33]}
{[%emt 00:01:46]} Rbxb2 {[%clk 01:14:35]} {[%emt 00:00:34]} 27. a4 {[%clk
01:02:38]} {[%emt 00:01:25]} Ra2 {[%clk 01:13:41]} {[%emt 00:01:24]} 28. a5
{[%clk 01:02:17]} {[%emt 00:00:51]} Ke6 {[%clk 01:12:59]} {[%emt 00:01:11]} 29.
Nd8+ {[%clk 01:01:38]} {[%emt 00:01:10]} Kf6 {[%clk 01:11:26]} {[%emt
00:02:03]} 30. Rf7+ {[%clk 01:00:53]} {[%emt 00:01:15]} Ke5 {[%clk 01:11:01]}
{[%emt 00:00:53]} 31. Rxa7 {[%clk 01:00:32]} {[%emt 00:00:51]} Be3 {[%clk
01:10:51]} {[%emt 00:00:41]} 32. Re7+ {[%clk 01:00:23]} {[%emt 00:00:39]} Kd4
{[%clk 01:08:57]} {[%emt 00:02:24]} 33. Rxe3 {[%clk 00:59:51]} {[%emt
00:01:01]} Rxa5 {[%clk 01:09:10]} {[%emt 00:00:18]} 34. Rd1+ {[%clk 00:58:33]}
{[%emt 00:01:48]} Kc4 {[%clk 01:09:19]} {[%emt 00:00:20]} 35. Nc6 {[%clk
00:56:11]} {[%emt 00:02:54]} Raa2 {[%clk 01:09:00]} {[%emt 00:00:49]} 36. Rd4+
{[%clk 00:56:08]} {[%emt 00:00:33]} Kb5 {[%clk 01:08:41]} {[%emt 00:00:49]} 37.
Nb4 {[%clk 00:54:31]} {[%emt 00:02:08]} Rc1+ {[%clk 01:08:21]} {[%emt
00:00:49]} 38. Kh2 {[%clk 00:54:55]} {[%emt 00:00:07]} Rxf2 {[%clk 01:08:24]}
{[%emt 00:00:26]} 39. Nd3 {[%clk 00:54:57]} {[%emt 00:00:28]} Rd2 {[%clk
01:07:28]} {[%emt 00:01:25]} 40. Nxc1 {[%clk 00:54:55]} {[%emt 00:00:32]} Rxd4
{[%clk 01:07:43]} {[%emt 00:00:15]} 41. Rg3 {[%clk 00:54:35]} {[%emt 00:00:50]}
Rd1 {[%clk 01:07:25]} {[%emt 00:00:48]} 42. Ne2 {[%clk 00:54:16]} {[%emt
00:00:48]} Rd2 {[%clk 01:07:40]} {[%emt 00:00:15]} 43. Nc3+ {[%clk 00:54:30]}
{[%emt 00:00:13]} Kc4 {[%clk 01:07:59]} {[%emt 00:00:16]} 44. Ne4 {[%clk
00:52:16]} {[%emt 00:02:44]} Rd4 {[%clk 01:08:03]} {[%emt 00:00:26]} 45. Nf6
{[%clk 00:52:27]} {[%emt 00:00:20]} Rd6 {[%clk 01:06:26]} {[%emt 00:02:06]} 46.
Rxg6 {[%clk 00:50:47]} {[%emt 00:02:10]} Kd4 {[%clk 01:06:29]} {[%emt
00:00:25]} 47. Rg4+ {[%clk 00:50:31]} {[%emt 00:00:48]} Ke5 {[%clk 01:06:32]}
{[%emt 00:00:26]} 48. Ne4 {[%clk 00:49:20]} {[%emt 00:01:41]} Rd4 {[%clk
01:06:50]} {[%emt 00:00:12]} 49. Ng3 {[%clk 00:49:36]} {[%emt 00:00:13]} Rd8
{[%clk 01:07:06]} {[%emt 00:00:15]} 50. h4 {[%clk 00:49:54]} {[%emt 00:00:12]}
Rh8 {[%clk 01:06:32]} {[%emt 00:01:03]} 51. Kh3 {[%clk 00:50:00]} {[%emt
00:00:24]} Kf6 {[%clk 01:06:18]} {[%emt 00:00:45]} 52. h5 {[%clk 00:50:15]}
{[%emt 00:00:15]} Rh6 {[%clk 01:06:03]} {[%emt 00:00:42]} 53. Rg6+ {[%clk
00:50:21]} {[%emt 00:00:27]} Rxg6 {[%clk 01:06:14]} {[%emt 00:00:19]} 54. hxg6
{[%clk 00:50:40]} {[%emt 00:00:11]} Kxg6 {[%clk 01:06:39]} {[%emt 00:00:07]} 55.
Kg4 {[%clk 00:50:31]} {[%emt 00:00:38]} Kg7 {[%clk 01:06:44]} {[%emt 00:00:25]}
56. Kg5 {[%clk 00:50:51]} {[%emt 00:00:11]} Kf7 {[%clk 01:05:54]} {[%emt
00:01:19]} 57. Nf5 {[%clk 00:50:55]} {[%emt 00:00:26]} Kg8 {[%clk 01:05:42]}
{[%emt 00:00:41]} 58. g4 {[%clk 00:51:07]} {[%emt 00:00:19]} Kf7 {[%clk
01:05:29]} {[%emt 00:00:40]} 59. Kh6 {[%clk 00:51:25]} {[%emt 00:00:15]} Kg8
{[%clk 01:05:42]} {[%emt 00:00:17]} 60. g5 {[%clk 00:51:39]} {[%emt 00:00:16]}
Kf8 {[%clk 01:05:20]} {[%emt 00:00:51]} 61. g6 {[%clk 00:51:46]} {[%emt
00:00:23]} Kg8 {[%clk 01:04:32]} {[%emt 00:01:19]} 62. g7 {[%clk 00:51:42]}
{[%emt 00:00:34]} Kf7 {[%clk 01:04:34]} {[%emt 00:00:28]} 63. Kh7 {[%clk
00:52:05]} {[%emt 00:00:08]} Kf6 {[%clk 00:44:56]} {[%emt 00:20:07]} 64. g8=Q
{[%emt 00:02:47]} Ke5 65. Kg6 {[%clk 00:50:23]} {[%emt 00:00:11]} Ke4 {[%clk
00:40:38]} {[%emt 00:05:03]} 66. Qe6+ {[%clk 00:50:45]} {[%emt 00:00:07]} Kf3
{[%clk 00:40:43]} {[%emt 00:00:25]} 67. Qe3+ {[%clk 00:51:10]} {[%emt
00:00:06]} Kg2 {[%clk 00:40:39]} {[%emt 00:00:33]} 68. Qg3+ {[%clk 00:51:34]}
{[%emt 00:00:06]} Kh1 {[%clk 00:40:24]} {[%emt 00:00:45]} 69. Qg4 {[%clk
00:51:56]} {[%emt 00:00:08]} Kh2 {[%clk 00:40:31]} {[%emt 00:00:23]} 70. Nh4
{[%clk 00:52:19]} {[%emt 00:00:07]} Kh1 {[%clk 00:39:50]} {[%emt 00:01:10]} 71.
Qg2# {[%emt 00:00:24]} 1-0

[Event "NJSK 2023 Meisjes C"]
[Site "Almelo, Netherlands"]
[Date "2023.05.04"]
[Round "5.6"]
[White "Hardeman, Imara"]
[Black "Rutten, Lenthe"]
[Result "1-0"]
[TimeControl "90min/40moves + 30min + 30sec/move"]
[WhiteElo "920"]
[BlackElo "604"]

1. e4 {[%clk 01:30:59]} c5 {[%clk 01:30:56]} {[%emt 00:00:05]} 2. Nf3 {[%clk
01:30:08]} {[%emt 00:01:21]} Nc6 {[%clk 01:31:14]} {[%emt 00:00:12]} 3. Bc4
{[%clk 01:29:40]} {[%emt 00:00:58]} e5 {[%clk 01:30:52]} {[%emt 00:00:51]} 4.
Nc3 {[%clk 01:29:54]} {[%emt 00:00:17]} Nf6 {[%clk 01:30:32]} {[%emt 00:00:49]}
5. d3 {[%clk 01:29:06]} {[%emt 00:01:19]} g6 {[%clk 01:30:30]} {[%emt
00:00:32]} 6. Ng5 {[%clk 01:23:06]} {[%emt 00:06:30]} d5 {[%clk 01:29:44]}
{[%emt 00:01:16]} 7. Nxd5 {[%clk 01:18:49]} {[%emt 00:04:47]} Nd4 {[%clk
01:29:19]} {[%emt 00:00:54]} 8. Nxf6+ {[%clk 01:17:08]} {[%emt 00:02:11]} Qxf6
{[%clk 01:29:07]} {[%emt 00:00:41]} 9. Bxf7+ {[%clk 01:13:00]} {[%emt
00:04:39]} Ke7 {[%clk 01:29:04]} {[%emt 00:00:33]} 10. c3 {[%clk 01:10:46]}
{[%emt 00:02:44]} Bh6 {[%clk 01:27:26]} {[%emt 00:02:07]} 11. cxd4 {[%clk
01:10:13]} {[%emt 00:01:04]} Bxg5 {[%clk 01:26:59]} {[%emt 00:00:57]} 12. Bxg5
{[%clk 01:10:33]} {[%emt 00:00:11]} Qxg5 {[%clk 01:27:11]} {[%emt 00:00:17]} 13.
Bd5 {[%clk 01:03:45]} {[%emt 00:07:19]} Qxg2 {[%clk 01:26:07]} {[%emt
00:01:34]} 14. Rf1 {[%clk 01:03:20]} {[%emt 00:00:55]} cxd4 {[%clk 01:24:12]}
{[%emt 00:02:25]} 15. Qb3 {[%clk 01:00:31]} {[%emt 00:03:19]} Rb8 {[%clk
01:23:42]} {[%emt 00:01:00]} 16. Qa3+ {[%clk 01:00:03]} {[%emt 00:00:59]} Ke8
{[%clk 01:23:16]} {[%emt 00:00:55]} 17. Qxa7 {[%clk 01:00:17]} {[%emt
00:00:16]} Rf8 {[%clk 01:22:12]} {[%emt 00:01:34]} 18. Qxb8 {[%clk 00:57:03]}
{[%emt 00:03:44]} Ke7 {[%clk 01:22:26]} {[%emt 00:00:16]} 19. Qxe5+ {[%clk
00:57:15]} {[%emt 00:00:18]} Kd8 {[%clk 01:22:20]} {[%emt 00:00:37]} 20. Qg3
{[%clk 00:57:16]} {[%emt 00:00:28]} Bh3 {[%clk 01:21:40]} {[%emt 00:01:09]} 21.
Qxg2 {[%clk 00:56:45]} {[%emt 00:01:02]} Bxg2 {[%clk 01:21:59]} {[%emt
00:00:11]} 22. Rg1 {[%clk 00:57:03]} {[%emt 00:00:13]} Bf3 {[%clk 01:22:12]}
{[%emt 00:00:17]} 23. Bxb7 {[%clk 00:57:07]} {[%emt 00:00:27]} 1-0

[Event "NJSK 2023 Meisjes C"]
[Site "Almelo, Netherlands"]
[Date "2023.05.05"]
[Round "6.1"]
[White "Westerhof, Fleur"]
[Black "Van Apeldoorn, Vera"]
[Result "1-0"]
[TimeControl "90min/40moves + 30min + 30sec/move"]
[WhiteElo "1743"]
[BlackElo "1153"]

1. e4 {[%clk 01:30:58]} e5 {[%clk 01:30:55]} {[%emt 00:00:06]} 2. Nf3 {[%clk
01:31:22]} {[%emt 00:00:06]} Nc6 {[%clk 01:31:16]} {[%emt 00:00:09]} 3. d4
{[%clk 01:31:48]} {[%emt 00:00:06]} exd4 {[%clk 01:31:24]} {[%emt 00:00:20]} 4.
Bc4 {[%clk 01:32:11]} {[%emt 00:00:06]} Bc5 {[%clk 01:31:17]} {[%emt 00:00:37]}
5. c3 {[%clk 01:32:31]} {[%emt 00:00:11]} Nf6 {[%clk 01:30:18]} {[%emt
00:01:29]} 6. e5 {[%clk 01:31:55]} {[%emt 00:01:07]} d5 {[%clk 01:30:09]}
{[%emt 00:00:37]} 7. Bb5 {[%clk 01:32:18]} {[%emt 00:00:08]} Ne4 {[%clk
01:30:09]} {[%emt 00:00:30]} 8. cxd4 {[%clk 01:32:33]} {[%emt 00:00:15]} Bb6
{[%clk 01:30:15]} {[%emt 00:00:24]} 9. Nc3 {[%clk 01:31:54]} {[%emt 00:01:09]}
O-O {[%clk 01:28:11]} {[%emt 00:02:33]} 10. Be3 {[%clk 01:31:36]} {[%emt
00:00:48]} Bg4 {[%clk 01:27:15]} {[%emt 00:01:26]} 11. h3 {[%clk 01:31:26]}
{[%emt 00:00:40]} Bh5 {[%clk 01:25:29]} {[%emt 00:02:16]} 12. Qc2 {[%clk
01:29:51]} {[%emt 00:02:05]} Bg6 {[%clk 01:24:20]} {[%emt 00:01:39]} 13. Qb3
{[%clk 01:29:26]} {[%emt 00:00:54]} Ne7 {[%clk 01:23:37]} {[%emt 00:01:15]} 14.
O-O {[%clk 01:26:37]} {[%emt 00:03:18]} c6 {[%clk 01:23:14]} {[%emt 00:00:54]}
15. Be2 {[%clk 01:17:30]} {[%emt 00:09:37]} Rb8 {[%clk 01:20:56]} {[%emt
00:02:48]} 16. Rad1 {[%clk 01:14:06]} {[%emt 00:03:53]} f6 {[%clk 01:17:56]}
{[%emt 00:03:31]} 17. a3 {[%clk 01:08:13]} {[%emt 00:06:24]} fxe5 {[%clk
01:08:53]} {[%emt 00:09:32]} 18. Nxe5 {[%clk 01:08:10]} {[%emt 00:00:32]} Nf6
{[%clk 01:03:00]} {[%emt 00:06:24]} 19. Na4 {[%clk 01:04:47]} {[%emt 00:03:52]}
Bc7 {[%clk 00:55:46]} {[%emt 00:07:46]} 20. Nc5 {[%clk 01:02:32]} {[%emt
00:02:43]} Qc8 {[%clk 00:53:47]} {[%emt 00:02:30]} 21. Bg5 {[%clk 00:56:27]}
{[%emt 00:06:34]} b6 {[%clk 00:49:45]} {[%emt 00:04:33]} 22. Na6 {[%clk
00:50:17]} {[%emt 00:06:39]} Ra8 {[%clk 00:47:12]} {[%emt 00:03:04]} 23. Rc1
{[%clk 00:43:48]} {[%emt 00:06:59]} Kh8 {[%clk 00:35:57]} {[%emt 00:11:44]} 24.
Nb4 {[%clk 00:29:38]} {[%emt 00:14:40]} Be8 {[%clk 00:26:32]} {[%emt 00:09:57]}
25. Ba6 {[%clk 00:28:49]} {[%emt 00:01:16]} Qe6 {[%clk 00:23:27]} {[%emt
00:03:35]} 26. Rfe1 {[%clk 00:23:32]} {[%emt 00:05:48]} Qd6 {[%clk 00:17:40]}
{[%emt 00:06:17]} 27. Bb7 {[%clk 00:22:12]} {[%emt 00:01:49]} Rb8 {[%clk
00:15:57]} {[%emt 00:02:14]} 28. Bxc6 {[%clk 00:22:12]} {[%emt 00:00:30]} Nxc6
{[%clk 00:15:22]} {[%emt 00:01:05]} 29. Nbxc6 {[%clk 00:22:22]} {[%emt
00:00:19]} Ra8 {[%clk 00:13:57]} {[%emt 00:01:55]} 30. Bf4 {[%clk 00:20:33]}
{[%emt 00:02:19]} Kg8 {[%clk 00:10:26]} {[%emt 00:04:01]} 31. Ng6 {[%clk
00:20:14]} {[%emt 00:00:49]} Qd7 {[%clk 00:08:59]} {[%emt 00:01:57]} 32. Nxf8
{[%clk 00:20:33]} {[%emt 00:00:12]} Kxf8 {[%clk 00:09:16]} {[%emt 00:00:13]} 33.
Qb4+ {[%clk 00:19:50]} {[%emt 00:01:13]} Kg8 {[%clk 00:09:01]} {[%emt
00:00:45]} 34. Ne7+ {[%clk 00:19:43]} {[%emt 00:00:37]} Kh8 {[%clk 00:07:27]}
{[%emt 00:02:04]} 35. Rxc7 {[%clk 00:19:50]} {[%emt 00:00:23]} Qd8 {[%clk
00:05:53]} {[%emt 00:02:05]} 36. Nf5 {[%clk 00:18:34]} {[%emt 00:01:44]} Bd7
{[%clk 00:04:43]} {[%emt 00:01:41]} 37. Ng3 {[%clk 00:16:38]} {[%emt 00:02:25]}
h6 {[%clk 00:04:04]} {[%emt 00:01:10]} 38. Qd6 {[%clk 00:15:37]} {[%emt
00:01:30]} b5 {[%clk 00:02:58]} {[%emt 00:01:37]} 39. Re7 {[%clk 00:15:13]}
{[%emt 00:00:53]} Rc8 {[%clk 00:02:07]} {[%emt 00:01:22]} 40. Rcxd7 {[%clk
00:15:06]} {[%emt 00:00:36]} Nxd7 {[%clk 00:02:18]} {[%emt 00:00:19]} 41. Rxd7
{[%clk 00:14:38]} {[%emt 00:00:58]} Qa5 {[%clk 00:00:52]} {[%emt 00:01:56]} 42.
Bxh6 {[%clk 00:13:49]} {[%emt 00:01:19]} Qe1+ {[%emt 00:02:51]} 43. Kh2 {[%clk
00:43:59]} Qe8 {[%clk 00:27:23]} {[%emt 00:01:58]} 44. Bxg7+ {[%clk 00:44:24]}
{[%emt 00:00:05]} Kg8 {[%clk 00:27:25]} {[%emt 00:00:28]} 45. Qxd5+ {[%clk
00:44:45]} {[%emt 00:00:09]} Kh7 {[%clk 00:27:44]} {[%emt 00:00:12]} 46. Be5+
{[%clk 00:44:35]} {[%emt 00:00:40]} Kh6 {[%clk 00:27:21]} {[%emt 00:00:52]} 47.
Qd6+ {[%clk 00:44:36]} {[%emt 00:00:30]} Qg6 {[%clk 00:26:35]} {[%emt
00:01:16]} 48. Bf4# {[%clk 00:44:30]} {[%emt 00:00:04]} 1-0

[Event "NJSK 2023 Meisjes C"]
[Site "Almelo, Netherlands"]
[Date "2023.05.05"]
[Round "6.2"]
[White "Jorritsma, Eli Alia"]
[Black "Hagen, Carlijn"]
[Result "0-1"]
[TimeControl "90min/40moves + 30min + 30sec/move"]
[WhiteElo "1330"]
[BlackElo "1132"]

1. Nf3 {[%clk 01:30:59]} d5 {[%clk 01:30:50]} {[%emt 00:00:12]} 2. b3 {[%clk
01:31:20]} {[%emt 00:00:09]} Bf5 {[%clk 01:30:32]} {[%emt 00:00:47]} 3. Bb2
{[%clk 01:31:30]} {[%emt 00:00:20]} e6 {[%clk 01:30:28]} {[%emt 00:00:34]} 4.
g3 {[%clk 01:31:38]} {[%emt 00:00:22]} Nf6 {[%clk 01:30:07]} {[%emt 00:00:51]}
5. Bg2 {[%clk 01:31:36]} {[%emt 00:00:30]} Bc5 {[%clk 01:28:51]} {[%emt
00:01:47]} 6. O-O {[%clk 01:30:33]} {[%emt 00:01:33]} Nbd7 {[%clk 01:28:31]}
{[%emt 00:00:51]} 7. c4 {[%clk 01:27:55]} {[%emt 00:03:09]} c6 {[%clk
01:28:07]} {[%emt 00:00:53]} 8. d3 {[%clk 01:24:05]} {[%emt 00:04:20]} O-O
{[%clk 01:20:12]} {[%emt 00:08:25]} 9. Nbd2 {[%clk 01:22:17]} {[%emt 00:02:17]}
Re8 {[%clk 01:15:59]} {[%emt 00:04:43]} 10. d4 {[%clk 01:11:28]} {[%emt
00:11:20]} Bb6 {[%clk 01:16:01]} {[%emt 00:00:28]} 11. e3 {[%clk 01:07:08]}
{[%emt 00:04:50]} Qb8 {[%clk 01:11:44]} {[%emt 00:04:47]} 12. Qe2 {[%clk
00:54:19]} {[%emt 00:13:19]} Bc7 {[%clk 01:07:28]} {[%emt 00:04:46]} 13. Rac1
{[%clk 00:50:52]} {[%emt 00:03:57]} h5 {[%clk 01:02:49]} {[%emt 00:05:08]} 14.
h4 {[%clk 00:48:05]} {[%emt 00:03:17]} Bg4 {[%clk 00:59:18]} {[%emt 00:04:02]}
15. Qe1 {[%clk 00:42:03]} {[%emt 00:06:32]} e5 {[%clk 00:54:24]} {[%emt
00:05:23]} 16. Ng5 {[%clk 00:29:27]} {[%emt 00:13:06]} Ba5 {[%clk 00:45:11]}
{[%emt 00:09:43]} 17. a3 {[%clk 00:26:56]} {[%emt 00:03:03]} e4 {[%clk
00:33:10]} {[%emt 00:12:30]} 18. b4 {[%clk 00:22:41]} {[%emt 00:04:45]} Bc7
{[%clk 00:32:36]} {[%emt 00:01:04]} 19. cxd5 {[%clk 00:21:38]} {[%emt
00:01:33]} cxd5 {[%clk 00:32:51]} {[%emt 00:00:15]} 20. Nb3 {[%clk 00:20:05]}
{[%emt 00:02:03]} Nb6 {[%clk 00:32:07]} {[%emt 00:01:14]} 21. Nd2 {[%clk
00:16:57]} {[%emt 00:03:37]} Bd7 {[%clk 00:28:27]} {[%emt 00:04:11]} 22. Bh3
{[%clk 00:14:11]} {[%emt 00:03:16]} Bb5 {[%clk 00:28:03]} {[%emt 00:00:53]} 23.
Qd1 {[%clk 00:13:00]} {[%emt 00:01:41]} Bxf1 {[%clk 00:26:31]} {[%emt
00:02:03]} 24. Bxf1 {[%clk 00:13:23]} {[%emt 00:00:07]} Bxg3 {[%clk 00:25:29]}
{[%emt 00:01:32]} 25. fxg3 {[%clk 00:12:26]} {[%emt 00:01:26]} Qxg3+ {[%clk
00:25:49]} {[%emt 00:00:11]} 26. Kh1 {[%clk 00:12:51]} {[%emt 00:00:04]} Ng4
{[%clk 00:25:51]} {[%emt 00:00:28]} 27. Qe2 {[%clk 00:12:03]} {[%emt 00:01:18]}
Nf2+ {[%clk 00:25:30]} {[%emt 00:00:51]} 0-1